[Event "Top 12 Féminin 2026"]
[Site "Asnières-sur-Seine, France"]
[Date "2026.05.14"]
[Round "2.9"]
[White "Wagner, Dinara"]
[Black "Daulyte-Cornette, Deimante"]
[Result "1-0"]
[TimeControl "1h30 / 40 moves + 30m + 30sec/move"]
[WhiteTitle "IM"]
[BlackTitle "IM"]
[WhiteFideId "-"]
[BlackFideId "-"]
[WhiteElo "2408"]
[BlackElo "2389"]

1. d4 {[%clk 01:30:59]} Nf6 {[%clk 01:30:53]} {[%emt 00:00:07]} 2. c4 {[%clk
01:31:24]} {[%emt 00:00:05]} e6 {[%clk 01:31:16]} {[%emt 00:00:06]} 3. Nc3
{[%clk 01:31:46]} {[%emt 00:00:08]} d5 {[%clk 01:31:37]} {[%emt 00:00:10]} 4.
cxd5 {[%clk 01:32:10]} {[%emt 00:00:06]} exd5 {[%clk 01:32:02]} {[%emt
00:00:05]} 5. Bg5 {[%clk 01:32:36]} {[%emt 00:00:04]} Be7 {[%clk 01:32:07]}
{[%emt 00:00:24]} 6. e3 {[%clk 01:32:58]} {[%emt 00:00:08]} O-O {[%clk
01:32:19]} {[%emt 00:00:18]} 7. Bd3 {[%clk 01:33:22]} {[%emt 00:00:06]} Re8
{[%clk 01:32:18]} {[%emt 00:00:31]} 8. Nge2 {[%clk 01:33:11]} {[%emt 00:00:41]}
Nbd7 {[%clk 01:31:02]} {[%emt 00:01:46]} 9. O-O {[%clk 01:33:07]} {[%emt
00:00:34]} c6 {[%clk 01:31:07]} {[%emt 00:00:25]} 10. Qc2 {[%clk 01:33:31]}
{[%emt 00:00:06]} Nf8 {[%clk 01:30:57]} {[%emt 00:00:39]} 11. a3 {[%clk
01:31:40]} {[%emt 00:02:21]} Ng6 {[%clk 01:25:41]} {[%emt 00:05:46]} 12. b4
{[%clk 01:24:51]} {[%emt 00:07:20]} a6 {[%clk 01:25:26]} {[%emt 00:00:44]} 13.
Nf4 {[%clk 01:18:43]} {[%emt 00:06:38]} Nxf4 {[%clk 01:17:17]} {[%emt
00:08:40]} 14. Bxf4 {[%clk 01:17:02]} {[%emt 00:02:10]} Bd6 {[%clk 01:17:07]}
{[%emt 00:00:40]} 15. Bxd6 {[%clk 01:16:40]} {[%emt 00:00:52]} Qxd6 {[%clk
01:17:32]} {[%emt 00:00:05]} 16. h3 {[%clk 01:17:08]} {[%emt 00:00:03]} b5
{[%clk 01:11:07]} {[%emt 00:06:55]} 17. a4 {[%clk 01:01:43]} {[%emt 00:15:55]}
Bd7 {[%clk 00:55:13]} {[%emt 00:16:23]} 18. Rfb1 {[%clk 01:01:54]} {[%emt
00:00:19]} g6 {[%clk 00:54:23]} {[%emt 00:01:20]} 19. Ne2 {[%clk 00:59:12]}
{[%emt 00:03:12]} Reb8 {[%clk 00:47:34]} {[%emt 00:07:19]} 20. a5 {[%clk
00:47:43]} {[%emt 00:11:59]} Re8 {[%clk 00:46:29]} {[%emt 00:01:35]} 21. Nc1
{[%clk 00:47:52]} {[%emt 00:00:21]} Re7 {[%clk 00:41:16]} {[%emt 00:05:43]} 22.
Nb3 {[%clk 00:38:55]} {[%emt 00:09:27]} Rae8 {[%clk 00:38:14]} {[%emt
00:03:32]} 23. Qc5 {[%clk 00:39:19]} {[%emt 00:00:07]} Qxc5 {[%clk 00:37:19]}
{[%emt 00:01:24]} 24. Nxc5 {[%clk 00:39:46]} {[%emt 00:00:03]} Bc8 {[%clk
00:37:39]} {[%emt 00:00:11]} 25. Rc1 {[%clk 00:40:07]} {[%emt 00:00:09]} Rd8
{[%clk 00:25:56]} {[%emt 00:12:13]} 26. g4 {[%clk 00:16:15]} {[%emt 00:24:22]}
Ne8 {[%clk 00:10:06]} {[%emt 00:16:19]} 27. g5 {[%clk 00:16:41]} {[%emt
00:00:04]} Nd6 {[%clk 00:07:22]} {[%emt 00:03:12]} 28. h4 {[%clk 00:13:19]}
{[%emt 00:03:53]} Kg7 {[%clk 00:07:46]} {[%emt 00:00:05]} 29. Kg2 {[%clk
00:13:12]} {[%emt 00:00:39]} h6 {[%clk 00:08:01]} {[%emt 00:00:15]} 30. Rh1
{[%clk 00:13:15]} {[%emt 00:00:27]} Rh8 {[%clk 00:07:57]} {[%emt 00:00:33]} 31.
Rag1 {[%clk 00:10:01]} {[%emt 00:03:45]} h5 {[%clk 00:03:57]} {[%emt 00:04:30]}
32. Kf1 {[%clk 00:08:57]} {[%emt 00:01:34]} Nb7 {[%clk 00:03:57]} {[%emt
00:00:29]} 33. Nb3 {[%clk 00:07:52]} {[%emt 00:01:36]} Bg4 {[%clk 00:03:40]}
{[%emt 00:00:47]} 34. Ke1 {[%clk 00:06:36]} {[%emt 00:01:46]} Rd8 {[%clk
00:03:20]} {[%emt 00:00:50]} 35. Kd2 {[%clk 00:06:30]} {[%emt 00:00:37]} Rd6
{[%clk 00:03:26]} {[%emt 00:00:24]} 36. Rg3 {[%clk 00:06:40]} {[%emt 00:00:20]}
Bc8 {[%clk 00:02:25]} {[%emt 00:01:31]} 37. Nc1 {[%clk 00:03:38]} {[%emt
00:03:32]} Rd8 {[%clk 00:02:30]} {[%emt 00:00:25]} 38. Rf3 {[%clk 00:03:05]}
{[%emt 00:01:04]} Nd6 {[%clk 00:02:30]} {[%emt 00:00:29]} 39. Rf6 {[%clk
00:02:27]} {[%emt 00:01:08]} Re6 {[%clk 00:02:11]} {[%emt 00:00:49]} 40. Rf4
{[%clk 00:01:03]} {[%emt 00:01:54]} Rde8 {[%clk 00:01:04]} {[%emt 00:01:37]} 41.
Nb3 {[%clk 00:00:59]} {[%emt 00:00:34]} Nb7 {[%clk 00:01:08]} {[%emt 00:00:26]}
42. Kc3 {[%clk 00:00:54]} {[%emt 00:00:35]} R6e7 {[%clk 00:17:23]} {[%emt
00:14:15]} 43. Nd2 {[%clk 00:24:38]} {[%emt 00:06:47]} Nd6 {[%clk 00:15:15]}
{[%emt 00:02:38]} 44. Nf3 {[%clk 00:21:45]} {[%emt 00:03:23]} Be6 {[%clk
00:09:55]} {[%emt 00:05:50]} 45. Rc1 {[%clk 00:19:18]} {[%emt 00:02:57]} Rc8
{[%clk 00:10:06]} {[%emt 00:00:18]} 46. Ne5 {[%clk 00:18:48]} {[%emt 00:01:01]}
Rb7 {[%clk 00:08:39]} {[%emt 00:01:57]} 47. Rc2 {[%clk 00:14:32]} {[%emt
00:04:47]} Bf5 {[%clk 00:04:46]} {[%emt 00:04:22]} 48. Bxf5 {[%clk 00:12:53]}
{[%emt 00:02:08]} Nxf5 {[%clk 00:05:12]} {[%emt 00:00:05]} 49. Nd3 {[%clk
00:12:25]} {[%emt 00:00:59]} Nd6 {[%clk 00:05:16]} {[%emt 00:00:26]} 50. Nc5
{[%clk 00:12:34]} {[%emt 00:00:21]} Ra7 {[%clk 00:05:42]} {[%emt 00:00:04]} 51.
Kd3 {[%clk 00:12:27]} {[%emt 00:00:37]} Kf8 {[%clk 00:05:21]} {[%emt 00:00:50]}
52. f3 {[%clk 00:11:31]} {[%emt 00:01:27]} Nc4 {[%clk 00:03:30]} {[%emt
00:02:20]} 53. e4 {[%clk 00:11:10]} {[%emt 00:00:52]} dxe4+ {[%clk 00:03:32]}
{[%emt 00:00:28]} 54. fxe4 {[%clk 00:11:36]} {[%emt 00:00:04]} Kg7 {[%clk
00:03:52]} {[%emt 00:00:09]} 55. Rcf2 {[%clk 00:10:31]} {[%emt 00:01:35]} Nd6
{[%clk 00:03:23]} {[%emt 00:01:00]} 56. Rf1 {[%clk 00:09:17]} {[%emt 00:01:43]}
Rcc7 {[%clk 00:03:32]} {[%emt 00:00:21]} 57. e5 {[%clk 00:03:46]} {[%emt
00:06:01]} Ne8 {[%clk 00:03:42]} {[%emt 00:00:20]} 58. e6 {[%clk 00:03:19]}
{[%emt 00:00:57]} Nd6 {[%clk 00:03:59]} {[%emt 00:00:13]} 59. exf7 {[%clk
00:03:46]} {[%emt 00:00:04]} Rxf7 {[%clk 00:04:15]} {[%emt 00:00:13]} 60. Rxf7+
{[%clk 00:03:43]} {[%emt 00:00:33]} Nxf7 {[%clk 00:04:34]} {[%emt 00:00:12]} 61.
Rf6 {[%clk 00:04:11]} {[%emt 00:00:02]} Nh6 {[%clk 00:04:12]} {[%emt 00:00:51]}
62. Ne6+ {[%clk 00:03:33]} {[%emt 00:01:08]} 1-0

[Event "Top 12 Féminin 2026"]
[Site "Asnières-sur-Seine, France"]
[Date "2026.05.14"]
[Round "2.10"]
[White "Osmak, Yuliaa"]
[Black "Fromherz, Audrey"]
[Result "1-0"]
[TimeControl "1h30 / 40 moves + 30m + 30sec/move"]
[WhiteTitle "IM"]
[BlackTitle "-"]
[WhiteFideId "14101602"]
[BlackFideId "-"]
[WhiteElo "2451"]
[BlackElo "1764"]

1. d4 {[%clk 01:25:26]} {[%emt 00:05:34]} Nf6 {[%clk 01:28:49]} {[%emt
00:02:11]} 2. c4 {[%clk 01:25:51]} {[%emt 00:00:06]} g6 {[%clk 01:29:04]}
{[%emt 00:00:15]} 3. Nc3 {[%clk 01:26:11]} {[%emt 00:00:09]} Bg7 {[%clk
01:29:22]} {[%emt 00:00:13]} 4. e4 {[%clk 01:26:34]} {[%emt 00:00:07]} d6
{[%clk 01:29:41]} {[%emt 00:00:11]} 5. Be2 {[%clk 01:26:55]} {[%emt 00:00:09]}
O-O {[%clk 01:29:49]} {[%emt 00:00:21]} 6. Be3 {[%clk 01:27:12]} {[%emt
00:00:13]} Nc6 {[%clk 01:22:17]} {[%emt 00:08:03]} 7. Nf3 {[%clk 01:24:29]}
{[%emt 00:03:13]} e5 {[%clk 01:20:00]} {[%emt 00:02:47]} 8. d5 {[%clk
01:24:32]} {[%emt 00:00:27]} Ne7 {[%clk 01:19:03]} {[%emt 00:01:27]} 9. Nd2
{[%clk 01:22:33]} {[%emt 00:02:29]} Nd7 {[%clk 01:09:56]} {[%emt 00:09:37]} 10.
g4 {[%clk 01:17:17]} {[%emt 00:05:46]} f5 {[%clk 01:03:33]} {[%emt 00:06:53]}
11. gxf5 {[%clk 01:08:53]} {[%emt 00:08:54]} gxf5 {[%clk 01:01:23]} {[%emt
00:02:40]} 12. Bg5 {[%clk 01:08:52]} {[%emt 00:00:30]} f4 {[%clk 00:59:05]}
{[%emt 00:02:48]} 13. Bg4 {[%clk 01:00:31]} {[%emt 00:08:52]} Nf6 {[%clk
00:53:26]} {[%emt 00:06:09]} 14. Bxc8 {[%clk 00:59:09]} {[%emt 00:01:51]} Qxc8
{[%clk 00:53:14]} {[%emt 00:00:42]} 15. Qf3 {[%clk 00:57:39]} {[%emt 00:02:00]}
a6 {[%clk 00:38:53]} {[%emt 00:14:51]} 16. h4 {[%clk 00:53:46]} {[%emt
00:04:22]} h6 {[%clk 00:38:37]} {[%emt 00:00:46]} 17. Bxf6 {[%clk 00:53:50]}
{[%emt 00:00:27]} Bxf6 {[%clk 00:37:36]} {[%emt 00:01:31]} 18. O-O-O {[%clk
00:46:01]} {[%emt 00:08:19]} b5 {[%clk 00:31:45]} {[%emt 00:06:21]} 19. Qh5
{[%clk 00:44:35]} {[%emt 00:01:56]} Kh7 {[%clk 00:30:45]} {[%emt 00:01:30]} 20.
Nf3 {[%clk 00:44:29]} {[%emt 00:00:36]} Qe8 {[%clk 00:24:44]} {[%emt 00:06:31]}
21. Qg4 {[%clk 00:42:42]} {[%emt 00:02:16]} b4 {[%clk 00:21:53]} {[%emt
00:03:21]} 22. Ng5+ {[%clk 00:36:53]} {[%emt 00:06:19]} Kh8 {[%clk 00:20:56]}
{[%emt 00:01:27]} 23. Ne2 {[%clk 00:36:30]} {[%emt 00:00:52]} h5 {[%clk
00:01:22]} {[%emt 00:20:04]} 24. Qf3 {[%clk 00:34:40]} {[%emt 00:02:20]} Rg8
{[%clk 00:01:07]} {[%emt 00:00:46]} 25. Rdg1 {[%clk 00:33:51]} {[%emt
00:01:18]} Qg6 {[%clk 00:00:40]} {[%emt 00:00:58]} 26. Ne6 {[%clk 00:32:32]}
{[%emt 00:01:49]} Qf7 {[%clk 00:00:37]} {[%emt 00:00:33]} 27. Rg5 {[%clk
00:29:15]} {[%emt 00:03:47]} Bxg5 {[%clk 00:00:43]} {[%emt 00:00:24]} 28. hxg5
{[%clk 00:29:41]} {[%emt 00:00:04]} Rgc8 {[%clk 00:00:43]} {[%emt 00:00:30]} 29.
Ng3 {[%clk 00:28:39]} {[%emt 00:01:32]} c6 {[%clk 00:00:55]} {[%emt 00:00:18]}
30. Nxh5 {[%clk 00:28:52]} {[%emt 00:00:16]} Kg8 {[%clk 00:00:53]} {[%emt
00:00:33]} 31. Nf6+ {[%clk 00:29:13]} {[%emt 00:00:09]} Qxf6 {[%clk 00:00:40]}
{[%emt 00:01:30]} 32. gxf6 {[%clk 00:31:34]} {[%emt 00:00:05]} Ng6 {[%clk
00:01:00]} {[%emt 00:00:10]} 33. Qg4 {[%clk 00:31:35]} {[%emt 00:00:29]} Kf7
{[%clk 00:01:17]} {[%emt 00:00:13]} 34. Rh7+ {[%clk 00:32:01]} {[%emt
00:00:04]} 1-0

[Event "Top 12 Féminin 2026"]
[Site "Asnières-sur-Seine, France"]
[Date "2026.05.14"]
[Round "2.11"]
[White "Hoch, Anna"]
[Black "Schippke, Manon"]
[Result "0-1"]
[TimeControl "1h30 / 40 moves + 30m + 30sec/move"]
[WhiteTitle "-"]
[BlackTitle "WIM"]
[WhiteFideId "-"]
[BlackFideId "-"]
[WhiteElo "1658"]
[BlackElo "2311"]

1. d4 {[%clk 01:30:59]} d5 {[%clk 01:30:55]} {[%emt 00:00:04]} 2. Bg5 {[%clk
01:31:16]} {[%emt 00:00:14]} h6 {[%clk 01:30:38]} {[%emt 00:00:47]} 3. Bh4
{[%clk 01:31:31]} {[%emt 00:00:15]} c5 {[%clk 01:22:47]} {[%emt 00:08:22]} 4.
e3 {[%clk 01:23:01]} {[%emt 00:09:00]} Nc6 {[%clk 01:17:19]} {[%emt 00:05:58]}
5. Nf3 {[%clk 01:20:53]} {[%emt 00:02:37]} Qb6 {[%clk 01:10:38]} {[%emt
00:07:12]} 6. Nc3 {[%clk 01:15:43]} {[%emt 00:05:40]} e6 {[%clk 01:09:53]}
{[%emt 00:01:14]} 7. Na4 {[%clk 01:09:04]} {[%emt 00:07:10]} Qa5+ {[%clk
01:09:48]} {[%emt 00:00:35]} 8. c3 {[%clk 01:05:34]} {[%emt 00:04:00]} cxd4
{[%clk 01:06:27]} {[%emt 00:03:51]} 9. exd4 {[%clk 01:05:04]} {[%emt 00:01:00]}
Bd7 {[%clk 01:06:53]} {[%emt 00:00:04]} 10. Be2 {[%clk 01:01:34]} {[%emt
00:03:59]} Nxd4 {[%clk 00:53:19]} {[%emt 00:14:05]} 11. Qxd4 {[%clk 00:58:04]}
{[%emt 00:03:59]} Qxa4 {[%clk 00:53:12]} {[%emt 00:00:38]} 12. Qxa4 {[%clk
00:55:12]} {[%emt 00:03:22]} Bxa4 {[%clk 00:53:38]} {[%emt 00:00:04]} 13. Ne5
{[%clk 00:53:53]} {[%emt 00:01:49]} Be7 {[%clk 00:49:20]} {[%emt 00:04:48]} 14.
Bg3 {[%clk 00:49:37]} {[%emt 00:04:44]} Nf6 {[%clk 00:48:19]} {[%emt 00:01:32]}
15. O-O {[%clk 00:48:28]} {[%emt 00:01:39]} Ne4 {[%clk 00:44:59]} {[%emt
00:03:51]} 16. Bf4 {[%clk 00:46:58]} {[%emt 00:01:59]} O-O {[%clk 00:43:18]}
{[%emt 00:02:11]} 17. c4 {[%clk 00:36:16]} {[%emt 00:11:12]} Rac8 {[%clk
00:38:11]} {[%emt 00:05:37]} 18. Rac1 {[%clk 00:33:09]} {[%emt 00:03:36]} Rfd8
{[%clk 00:34:59]} {[%emt 00:03:42]} 19. Bg4 {[%clk 00:27:09]} {[%emt 00:06:29]}
d4 {[%clk 00:33:24]} {[%emt 00:02:06]} 20. Rfe1 {[%clk 00:21:48]} {[%emt
00:05:50]} Nf6 {[%clk 00:32:21]} {[%emt 00:01:33]} 21. Bf3 {[%clk 00:17:44]}
{[%emt 00:04:34]} Bc6 {[%clk 00:30:26]} {[%emt 00:02:26]} 22. Nxc6 {[%clk
00:17:15]} {[%emt 00:00:58]} bxc6 {[%clk 00:30:53]} {[%emt 00:00:03]} 23. Red1
{[%clk 00:16:08]} {[%emt 00:01:36]} Ne8 {[%clk 00:24:11]} {[%emt 00:07:12]} 24.
c5 {[%clk 00:15:09]} {[%emt 00:01:30]} f5 {[%clk 00:21:37]} {[%emt 00:03:04]}
25. Be2 {[%emt 00:13:12]} g5 {[%clk 00:17:33]} 26. Be5 {[%clk 00:06:42]} {[%emt
00:00:49]} Bf6 {[%clk 00:17:55]} {[%emt 00:00:07]} 27. Bxf6 {[%clk 00:07:03]}
{[%emt 00:00:10]} Nxf6 {[%clk 00:18:24]} {[%emt 00:00:02]} 28. Bc4 {[%clk
00:07:21]} {[%emt 00:00:11]} Kf7 {[%clk 00:18:50]} {[%emt 00:00:04]} 29. Re1
{[%clk 00:07:29]} {[%emt 00:00:20]} Nd5 {[%clk 00:15:11]} {[%emt 00:04:10]} 30.
Rcd1 {[%clk 00:06:50]} {[%emt 00:01:09]} Nc7 {[%clk 00:15:38]} {[%emt
00:00:03]} 31. Re5 {[%clk 00:05:48]} {[%emt 00:01:31]} Kf6 {[%clk 00:15:39]}
{[%emt 00:00:31]} 32. Re2 {[%clk 00:05:36]} {[%emt 00:00:42]} e5 {[%clk
00:15:33]} {[%emt 00:00:37]} 33. f3 {[%clk 00:05:50]} {[%emt 00:00:16]} Nd5
{[%clk 00:13:31]} {[%emt 00:02:32]} 34. Rde1 {[%clk 00:04:47]} {[%emt
00:01:32]} Ne3 {[%clk 00:13:53]} {[%emt 00:00:09]} 35. Bd3 {[%clk 00:04:59]}
{[%emt 00:00:17]} Re8 {[%clk 00:13:08]} {[%emt 00:01:16]} 36. g4 {[%clk
00:04:49]} {[%emt 00:00:39]} e4 {[%clk 00:11:55]} {[%emt 00:01:42]} 37. fxe4
{[%clk 00:05:08]} {[%emt 00:00:12]} fxe4 {[%clk 00:12:22]} {[%emt 00:00:03]} 38.
Rf2+ {[%clk 00:05:17]} {[%emt 00:00:20]} Kg7 {[%clk 00:12:02]} {[%emt
00:00:50]} 39. Bc4 {[%clk 00:05:13]} {[%emt 00:00:34]} Nxc4 {[%clk 00:12:26]}
{[%emt 00:00:07]} 0-1

[Event "Top 12 Féminin 2026"]
[Site "Asnières-sur-Seine, France"]
[Date "2026.05.14"]
[Round "2.12"]
[White "Tomasi, Elise"]
[Black "Loppin, Tya"]
[Result "1-0"]
[TimeControl "1h30 / 40 moves + 30m + 30sec/move"]
[WhiteTitle "WFM"]
[BlackTitle "-"]
[WhiteFideId "-"]
[BlackFideId "-"]
[WhiteElo "2072"]
[BlackElo "1660"]

1. d4 {[%clk 01:30:48]} {[%emt 00:00:11]} Nf6 {[%clk 01:30:51]} {[%emt
00:00:09]} 2. Nf3 {[%clk 01:31:05]} {[%emt 00:00:12]} e6 {[%clk 01:30:54]}
{[%emt 00:00:28]} 3. g3 {[%clk 01:31:30]} {[%emt 00:00:05]} b6 {[%clk
01:31:20]} {[%emt 00:00:04]} 4. Bg2 {[%clk 01:31:55]} {[%emt 00:00:04]} Bb7
{[%clk 01:31:38]} {[%emt 00:00:12]} 5. O-O {[%clk 01:32:17]} {[%emt 00:00:06]}
Be7 {[%clk 01:31:34]} {[%emt 00:00:35]} 6. c4 {[%clk 01:32:42]} {[%emt
00:00:06]} O-O {[%clk 01:31:59]} {[%emt 00:00:04]} 7. d5 {[%clk 01:33:10]}
{[%emt 00:00:03]} Na6 {[%clk 01:19:19]} {[%emt 00:13:10]} 8. Nc3 {[%clk
01:28:59]} {[%emt 00:04:41]} Nc5 {[%clk 01:18:41]} {[%emt 00:01:08]} 9. Nd4
{[%clk 01:27:44]} {[%emt 00:01:46]} a5 {[%clk 01:12:54]} {[%emt 00:06:17]} 10.
e4 {[%clk 01:14:05]} {[%emt 00:14:08]} e5 {[%clk 01:13:05]} {[%emt 00:00:20]}
11. Nf5 {[%clk 01:14:29]} {[%emt 00:00:05]} Ba6 {[%clk 01:11:18]} {[%emt
00:02:17]} 12. Qe2 {[%clk 01:02:37]} {[%emt 00:12:21]} Nb7 {[%clk 01:10:28]}
{[%emt 00:01:21]} 13. f4 {[%clk 00:59:35]} {[%emt 00:03:32]} Bc5+ {[%clk
01:08:15]} {[%emt 00:02:44]} 14. Kh1 {[%clk 00:57:08]} {[%emt 00:02:55]} d6
{[%clk 01:06:31]} {[%emt 00:02:15]} 15. fxe5 {[%clk 00:55:14]} {[%emt
00:02:24]} dxe5 {[%clk 01:05:56]} {[%emt 00:01:06]} 16. Bg5 {[%clk 00:55:11]}
{[%emt 00:00:32]} Be7 {[%clk 01:04:43]} {[%emt 00:01:44]} 17. Nxe7+ {[%clk
00:49:29]} {[%emt 00:06:12]} Qxe7 {[%clk 01:04:55]} {[%emt 00:00:18]} 18. d6
{[%clk 00:49:07]} {[%emt 00:00:51]} Nxd6 {[%clk 00:46:16]} {[%emt 00:19:10]} 19.
Bxf6 {[%clk 00:49:22]} {[%emt 00:00:15]} Qxf6 {[%clk 00:40:24]} {[%emt
00:06:23]} 20. Rxf6 {[%clk 00:49:34]} {[%emt 00:00:18]} gxf6 {[%clk 00:40:38]}
{[%emt 00:00:15]} 21. Nd5 {[%clk 00:49:44]} {[%emt 00:00:20]} Ne8 {[%clk
00:39:48]} {[%emt 00:01:20]} 22. Qg4+ {[%clk 00:49:39]} {[%emt 00:00:34]} Kh8
{[%clk 00:39:59]} {[%emt 00:00:19]} 23. Qh4 {[%clk 00:49:53]} {[%emt 00:00:16]}
Bxc4 {[%clk 00:39:56]} {[%emt 00:00:34]} 24. Nxf6 {[%clk 00:50:17]} {[%emt
00:00:05]} Nxf6 {[%clk 00:40:22]} {[%emt 00:00:05]} 25. Qxf6+ {[%clk 00:50:42]}
{[%emt 00:00:06]} Kg8 {[%clk 00:40:42]} {[%emt 00:00:09]} 26. Qg5+ {[%clk
00:50:57]} {[%emt 00:00:14]} Kh8 {[%clk 00:40:44]} {[%emt 00:00:28]} 27. Qxe5+
{[%clk 00:51:23]} {[%emt 00:00:05]} f6 {[%clk 00:41:08]} {[%emt 00:00:07]} 28.
Qxc7 {[%clk 00:51:43]} {[%emt 00:00:09]} b5 {[%clk 00:40:59]} {[%emt 00:00:38]}
29. b3 {[%clk 00:51:59]} {[%emt 00:00:15]} Be2 {[%clk 00:40:37]} {[%emt
00:00:52]} 30. Re1 {[%clk 00:51:57]} {[%emt 00:00:31]} Rfd8 {[%clk 00:40:00]}
{[%emt 00:01:08]} 31. Qc3 {[%clk 00:52:09]} {[%emt 00:00:18]} 1-0